fUST/lending_fUST_20250819
["ID","MTS","AMOUNT","RATE_DAILY","PERIOD"]
[380128841,1755562242533,-480.0,0.00019452,2]
[380128842,1755562242543,-480.0,0.00019452,2]
[380128843,1755562242552,-480.0,0.00019452,2]
[380128844,1755562242562,-480.0,0.00019452,2]
[380128845,1755562242571,-480.0,0.00019452,2]
[380128846,1755562242580,-480.0,0.00019452,2]
[380128847,1755562242589,-460.0,0.00019452,2]
[380128848,1755562242598,-587.25,0.00019452,2]
[380128849,1755562242608,-480.0,0.00019452,2]
[380128850,1755562242617,-480.0,0.00019452,2]
[380128851,1755562242627,-151.0,0.00019452,2]
[380128852,1755562242636,-480.0,0.00019452,2]
[380128853,1755562242645,-480.0,0.00019452,2]
[380128854,1755562242654,-519.31,0.00019452,2]
[380128855,1755562242664,-151.0,0.00019452,2]
[380128856,1755562242673,-480.0,0.00019452,2]
[380128857,1755562242682,-480.0,0.00019452,2]
[380128858,1755562242691,-178.523184,0.00019452,2]
[380128859,1755562242776,-524.02,0.00019452,2]
[380128860,1755562242795,-480.0,0.00019452,2]
[380128861,1755562242804,-178.523184,0.00019452,2]
[380128862,1755562242814,-480.0,0.00019452,2]
[380128863,1755562242823,-971.69,0.00019452,2]
[380128864,1755562242833,-480.0,0.00019452,2]
[380128865,1755562242843,-480.0,0.00019452,2]
[380128866,1755562242852,-612.73,0.00019452,2]
[380128867,1755562242862,-413.930488,0.00019452,2]
[380128868,1755562242871,-480.0,0.00019452,2]
[380128869,1755562242881,-413.930488,0.00019452,2]
[380128870,1755562242891,-480.0,0.00019452,2]
[380128871,1755562242901,-480.0,0.00019452,2]
[380128872,1755562242910,-480.0,0.00019452,2]
[380128873,1755562242920,-151.0,0.00019452,2]
[380128874,1755562242929,-4989.21,0.00019452,2]
[380128875,1755562242938,-480.0,0.00019452,2]
[380128876,1755562242948,-480.0,0.00019452,2]
[380128877,1755562242957,-263.424956,0.00019452,2]
[380128878,1755562242967,-263.424956,0.00019452,2]
[380128879,1755562242976,-151.0,0.00019452,2]
[380128880,1755562242985,-151.0,0.00019452,2]
[380128881,1755562242995,-480.0,0.00019452,2]
[380128882,1755562243004,-318.1449356,0.00019452,2]
[380128883,1755562243014,-480.0,0.00019452,2]
[380128884,1755562243023,-683.71,0.00019452,2]
[380128885,1755562243033,-1686.13,0.00019452,2]
[380128886,1755562243043,-151.0,0.00019452,2]
[380128887,1755562243053,-480.0,0.00019452,2]
[380128888,1755562243062,-156.960684,0.00019452,2]
[380128889,1755562243077,-151.0,0.00019452,2]
[380128890,1755562243088,-300.02025995,0.00019452,2]
[380128891,1755562243098,-480.0,0.00019452,2]
[380128892,1755562243109,-156.960684,0.00019452,2]
[380128894,1755562243119,-151.0,0.00019452,2]
[380128895,1755562243129,-480.0,0.00019452,2]
[380128897,1755562243139,-151.0,0.00019452,2]
[380128898,1755562243152,-480.0,0.00019452,2]
[380128899,1755562243162,-151.0,0.00019452,2]
[380128900,1755562243172,-458.111543,0.00019452,2]
[380128901,1755562243183,-1532.26,0.00019452,2]
[380128902,1755562243193,-480.0,0.00019452,2]
[380128903,1755562243203,-587.28372456,0.00019452,2]
[380128904,1755562243213,-151.0,0.00019452,2]
[380128905,1755562243222,-1301.059071,0.00019452,2]
[380128906,1755562243231,-480.0,0.00019452,2]
[380128907,1755562243241,-480.0,0.00019452,2]
[380128908,1755562243251,-508.55,0.00019452,2]
[380128909,1755562243260,-1301.059071,0.00019452,2]
[380128910,1755562243269,-480.0,0.00019452,2]
[380128911,1755562243280,-690.45,0.00019452,2]
[380128912,1755562243289,-480.0,0.00019452,2]
[380128913,1755562243299,-480.0,0.00019452,2]
[380128914,1755562243309,-480.0,0.00019452,2]
[380128915,1755562243318,-480.0,0.00019452,2]
[380128916,1755562243328,-4798.86,0.00019452,2]
[380128917,1755562243338,-480.0,0.00019452,2]
[380128918,1755562243347,-480.0,0.00019452,2]
[380128919,1755562243357,-151.0,0.00019452,2]
[380128920,1755562243366,-151.0,0.00019452,2]
[380128921,1755562243375,-480.0,0.00019452,2]
[380128922,1755562243385,-151.0,0.00019452,2]
[380128923,1755562243394,-151.0,0.00019452,2]
[380128925,1755562243404,-480.0,0.00019452,2]
[380128927,1755562243413,-480.0,0.00019452,2]
[380128929,1755562243422,-720.67,0.00019452,2]
[380128931,1755562243432,-445.65206733,0.00019452,2]
[380128933,1755562243442,-779.53,0.00019452,2]
[380128935,1755562243451,-773.58,0.00019452,2]
[380128937,1755562243460,-480.0,0.00019452,2]
[380128939,1755562243470,-359.273245,0.00019452,2]
[380128941,1755562243479,-896.82,0.00019452,2]
[380128943,1755562243488,-480.0,0.00019452,2]
[380128945,1755562243498,-151.0,0.00019452,2]
[380128947,1755562243507,-480.0,0.00019452,2]
[380128948,1755562243518,-359.273245,0.00019452,2]
[380128949,1755562243527,-480.0,0.00019452,2]
[380128950,1755562243537,-480.0,0.00019452,2]
[380128951,1755562243546,-480.0,0.00019452,2]
[380128954,1755562243555,-480.0,0.00019452,2]
[380128956,1755562243564,-480.0,0.00019452,2]
[380128957,1755562243573,-480.0,0.00019452,2]
[380128958,1755562243583,-480.0,0.00019452,2]
[380128959,1755562243592,-480.0,0.00019452,2]
[380128960,1755562243601,-151.0,0.00019452,2]
[380128961,1755562243610,-1766.5,0.00019452,2]
[380128962,1755562243620,-151.0,0.00019452,2]
[380128963,1755562243629,-151.0,0.00019452,2]
[380128964,1755562243638,-480.0,0.00019452,2]
[380128965,1755562243647,-480.0,0.00019452,2]
[380128966,1755562243657,-1377.2,0.00019452,2]
[380128967,1755562243666,-729.5,0.00019452,2]
[380128968,1755562243676,-546.93,0.00019452,2]
[380128969,1755562243685,-480.0,0.00019452,2]
[380128970,1755562243695,-480.0,0.00019452,2]
[380128971,1755562243704,-722.93,0.00019452,2]
[380128972,1755562243713,-480.0,0.00019452,2]
[380128973,1755562243723,-3187.65,0.00019452,2]
[380128974,1755562243733,-1064.23,0.00019452,2]
[380128975,1755562243743,-2797.12,0.00019452,2]
[380128976,1755562243752,-581.37,0.00019452,2]
[380128977,1755562243761,-642.71,0.00019452,2]
[380128978,1755562243773,-151.0,0.00019452,2]
[380128979,1755562243784,-480.0,0.00019452,2]
[380128980,1755562243793,-480.0,0.00019452,2]
[380128981,1755562243803,-759.58,0.00019452,2]
[380128982,1755562243814,-480.0,0.00019452,2]
[380128983,1755562243824,-2686.05,0.00019452,2]
[380128984,1755562243833,-387.446965,0.00019452,2]
[380128985,1755562243843,-480.0,0.00019452,2]
[380128986,1755562243852,-480.0,0.00019452,2]
[380128987,1755562243862,-387.446965,0.00019452,2]
[380128988,1755562243872,-151.0,0.00019452,2]
[380128989,1755562243881,-1174.09,0.00019452,2]
[380128990,1755562243890,-491.33,0.00019452,2]
[380128991,1755562243899,-1576.02,0.00019452,2]
[380128992,1755562243908,-2022.32,0.00019452,2]
[380128993,1755562243918,-480.0,0.00019452,2]
[380128994,1755562243927,-480.0,0.00019452,2]
[380128995,1755562243936,-151.0,0.00019452,2]
[380128996,1755562243946,-480.0,0.00019452,2]
[380128997,1755562243955,-151.0,0.00019452,2]
[380128998,1755562243965,-480.0,0.00019452,2]
[380128999,1755562243975,-480.0,0.00019452,2]
[380129000,1755562243984,-151.0,0.00019452,2]
[380129001,1755562243994,-151.0,0.00019452,2]
[380129002,1755562244003,-671.27,0.00019452,2]
[380129003,1755562244013,-151.0,0.00019452,2]
[380129004,1755562244022,-480.0,0.00019452,2]
[380129005,1755562244031,-493.03663,0.00019452,2]
[380129006,1755562244040,-1781.16,0.00019452,2]
[380129007,1755562244049,-523.053354,0.00019452,2]
[380129008,1755562244058,-480.0,0.00019452,2]
[380129009,1755562244068,-493.03663,0.00019452,2]
[380129010,1755562244079,-480.0,0.00019452,2]
[380129011,1755562244089,-523.053354,0.00019452,2]
[380129012,1755562244098,-480.0,0.00019452,2]
[380129013,1755562244108,-1311.693579,0.00019452,2]
[380129014,1755562244118,-497.37,0.00019452,2]
[380129015,1755562244128,-549.4,0.00019452,2]
[380129016,1755562244141,-151.0,0.00019452,2]
[380129017,1755562244151,-151.0,0.00019452,2]
[380129018,1755562244161,-1311.693579,0.00019452,2]
[380129019,1755562244172,-480.0,0.00019452,2]
[380129020,1755562244183,-242.875242,0.00019452,2]
[380129021,1755562244192,-480.0,0.00019452,2]
[380129022,1755562244201,-320.86531,0.00019452,2]
[380129023,1755562244211,-151.0,0.00019452,2]
[380129024,1755562244221,-151.0,0.00019452,2]
[380129025,1755562244231,-320.86531,0.00019452,2]
[380129026,1755562244240,-480.0,0.00019452,2]
[380129027,1755562244250,-735.04,0.00019452,2]
[380129028,1755562244260,-1792.86,0.00019452,2]
[380129029,1755562244269,-552.67,0.00019452,2]
[380129030,1755562244279,-166.66002,0.00019452,2]
[380129031,1755562244288,-166.66002,0.00019452,2]
[380129032,1755562244298,-480.0,0.00019452,2]
[380129033,1755562244308,-480.0,0.00019452,2]
[380129034,1755562244317,-151.0,0.00019452,2]
[380129035,1755562244327,-4744.36,0.00019452,2]
[380129036,1755562244336,-151.0,0.00019452,2]
[380129037,1755562244345,-480.0,0.00019452,2]
[380129038,1755562244355,-480.0,0.00019452,2]
[380129039,1755562244364,-151.0,0.00019452,2]
[380129040,1755562244374,-843.26,0.00019452,2]
[380129041,1755562244383,-170.25,0.00019452,2]
[380129042,1755562244392,-675.95,0.00019452,2]
[380129043,1755562244402,-480.0,0.00019452,2]
[380129044,1755562244412,-783.99,0.00019452,2]
[380129045,1755562244422,-1548.89,0.00019452,2]
[380129046,1755562244431,-500.0,0.00019452,2]
[380129047,1755562244440,-500.0,0.00019473,2]
[380129048,1755562244449,-500.0,0.00019473,2]
[380129049,1755562244459,-500.0,0.00019473,2]
[380129050,1755562244468,-500.0,0.00019473,2]
[380129051,1755562244478,-500.0,0.00019473,2]
[380129052,1755562244487,-500.0,0.00019473,2]
[380129053,1755562244500,-500.0,0.00019473,2]
[380129054,1755562244509,-500.0,0.00019473,2]
[380129055,1755562244518,-500.0,0.00019473,2]
[380129056,1755562244610,-500.0,0.00019473,2]
[380129057,1755562244620,-725.5334112,0.000195,2]
[380129058,1755562244630,-293.8392635,0.000195,2]
[380129059,1755562244639,-244.3141308,0.000195,2]
[380129060,1755562244648,-293.8392635,0.000195,2]
[380129061,1755562244658,-293.8392635,0.000195,2]
[380129062,1755562244667,-293.8392635,0.000195,2]
[380129063,1755562244676,-336.1267003,0.000195,2]
[380129064,1755562244686,-313.8257756,0.000195,2]
[380129065,1755562244696,-200.0,0.00019561,20]
[380129066,1755562244705,-200.0,0.00019561,20]
[380129067,1755562244715,-200.0,0.00019561,20]
[380129068,1755562244725,-200.0,0.00019561,20]
[380129069,1755562244735,-200.0,0.00019561,20]
[380129070,1755562244745,-200.0,0.00019561,20]
[380129071,1755562244755,-200.0,0.00019561,20]
[380129072,1755562244766,-200.0,0.00019561,20]
[380129073,1755562244775,-200.0,0.00019561,20]
[380129074,1755562244785,-200.0,0.00019561,20]
[380129075,1755562244795,-600.0,0.00019561,20]
[380129076,1755562244804,-250.0,0.00019586,2]
[380129077,1755562244814,-843.81736472,0.00019587,2]
[380129078,1755562244823,-160.0,0.00019587,2]
[380129079,1755562244834,-12683.78573522,0.00019587,2]
[380129080,1755562244843,-232.18122251,0.00019587,2]
[380129081,1755562244852,-528.58062739,0.00019587,2]
[380129082,1755562244862,-375.82681177,0.00019587,2]
[380129083,1755562244871,-216.85420361,0.00019587,2]
[380129084,1755562244880,-417.15472785,0.00019587,2]
[380129085,1755562244890,-215.75323784,0.00019587,2]
[380129086,1755562244900,-160.0,0.00019587,2]
[380129087,1755562244910,-160.0,0.00019587,2]
[380129088,1755562244920,-424.6212675,0.000196,2]
[380129089,1755562244929,-1000.0,0.00019626,2]
[380129090,1755562244940,-561.61,0.00019726,2]
[380129091,1755562244950,-151.0,0.00019726,2]
[380129092,1755562244961,-151.0,0.00019726,2]
[380129093,1755562244970,-151.0,0.00019726,2]
[380129094,1755562244980,-480.0,0.00019726,2]
[380129095,1755562244989,-151.0,0.00019726,2]
[380129096,1755562244999,-151.0,0.00019726,2]
[380129097,1755562245008,-151.0,0.00019726,2]
[380129098,1755562245017,-151.0,0.00019726,2]
[380129099,1755562245026,-151.0,0.00019726,2]
[380129100,1755562245036,-266.70175392,0.00019726,2]
[380129101,1755562245045,-151.0,0.00019726,2]
[380129102,1755562245054,-151.0,0.00019726,2]
[380129103,1755562245064,-151.0,0.00019726,2]
[380129104,1755562245076,-151.0,0.00019726,2]
[380129105,1755562245085,-202.718361,0.00019726,2]
[380129106,1755562245094,-480.0,0.00019726,2]
[380129107,1755562245104,-151.0,0.00019726,2]
[380129108,1755562245114,-480.0,0.00019726,2]
[380129109,1755562245124,-151.0,0.00019726,2]
[380129110,1755562245133,-1895.47,0.00019726,2]
[380129111,1755562245142,-151.0,0.00019726,2]
[380129112,1755562245154,-151.0,0.00019726,2]
[380129113,1755562245163,-602.38,0.00019726,2]
[380129114,1755562245173,-151.0,0.00019726,2]
[380129115,1755562245182,-480.0,0.00019726,2]
[380129116,1755562245192,-480.0,0.00019726,2]
[380129117,1755562245202,-480.0,0.00019726,2]
[380129118,1755562245211,-480.0,0.00019726,2]
[380129119,1755562245220,-151.0,0.00019726,2]
[380129120,1755562245229,-480.0,0.00019726,2]
[380129121,1755562245240,-480.0,0.00019726,2]
[380129122,1755562245251,-152.064425,0.00019726,2]
[380129123,1755562245260,-151.0,0.00019726,2]
[380129124,1755562245269,-151.0,0.00019726,2]
[380129125,1755562245279,-533.22,0.00019726,2]
[380129126,1755562245288,-151.0,0.00019726,2]
[380129127,1755562245298,-480.0,0.00019726,2]
[380129128,1755562245307,-479.26651427,0.00019726,2]
[380129129,1755562245315,-480.0,0.00019726,2]
[380129130,1755562245325,-480.0,0.00019726,2]
[380129131,1755562245335,-151.0,0.00019726,2]
[380129132,1755562245345,-486.7498933,0.00019726,2]
[380129133,1755562245354,-480.0,0.00019726,2]
[380129134,1755562245364,-151.0,0.00019726,2]
[380129135,1755562245373,-151.0,0.00019726,2]
[380129136,1755562245383,-639.444324,0.00019726,2]
[380129137,1755562245392,-151.0,0.00019726,2]
[380129138,1755562245402,-639.444324,0.00019726,2]
[380129139,1755562245411,-480.0,0.00019726,2]
[380129140,1755562245420,-480.0,0.00019726,2]
[380129141,1755562245430,-151.0,0.00019726,2]
[380129142,1755562245443,-151.0,0.00019726,2]
[380129143,1755562245452,-197.819997,0.00019726,2]
[380129144,1755562245462,-197.819997,0.00019726,2]
[380129145,1755562245471,-151.0,0.00019726,2]
[380129146,1755562245481,-587.25,0.00019726,2]
[380129147,1755562245490,-480.0,0.00019726,2]
[380129148,1755562245499,-151.0,0.00019726,2]
[380129149,1755562245509,-151.0,0.00019726,2]
[380129150,1755562245519,-151.0,0.00019726,2]
[380129151,1755562245529,-480.0,0.00019726,2]
[380129152,1755562245538,-151.0,0.00019726,2]
[380129153,1755562245547,-259.769084,0.00019726,2]
[380129154,1755562245557,-480.0,0.00019726,2]
[380129155,1755562245566,-178.523184,0.00019726,2]
[380129156,1755562245575,-524.02,0.00019726,2]
[380129157,1755562245585,-178.523184,0.00019726,2]
[380129158,1755562245594,-480.0,0.00019726,2]
[380129159,1755562245603,-971.69,0.00019726,2]
[380129160,1755562245612,-480.0,0.00019726,2]
[380129161,1755562245622,-480.0,0.00019726,2]
[380129162,1755562245631,-413.930488,0.00019726,2]
[380129163,1755562245641,-612.73,0.00019726,2]
[380129164,1755562245651,-480.0,0.00019726,2]
[380129165,1755562245660,-413.930488,0.00019726,2]
[380129166,1755562245669,-480.0,0.00019726,2]
[380129167,1755562245679,-480.0,0.00019726,2]
[380129168,1755562245688,-480.0,0.00019726,2]
[380129169,1755562245698,-151.0,0.00019726,2]
[380129170,1755562245707,-4989.21,0.00019726,2]
[380129171,1755562245716,-480.0,0.00019726,2]
[380129172,1755562245726,-480.0,0.00019726,2]
[380129173,1755562245735,-263.424956,0.00019726,2]
[380129174,1755562245745,-263.424956,0.00019726,2]
[380129175,1755562245754,-151.0,0.00019726,2]
[380129176,1755562245763,-151.0,0.00019726,2]
[380129177,1755562245772,-683.71,0.00019726,2]
[380129178,1755562245782,-1686.13,0.00019726,2]
[380129179,1755562245791,-151.0,0.00019726,2]
[380129180,1755562245801,-480.0,0.00019726,2]
[380129181,1755562245811,-156.960684,0.00019726,2]
[380129182,1755562245820,-151.0,0.00019726,2]
[380129183,1755562245829,-574.43,0.00019726,2]
[380129184,1755562245839,-156.960684,0.00019726,2]
[380129185,1755562245849,-151.0,0.00019726,2]
[380129186,1755562245859,-480.0,0.00019726,2]
[380129187,1755562245868,-151.0,0.00019726,2]
[380129188,1755562245878,-480.0,0.00019726,2]
[380129189,1755562245888,-458.111543,0.00019726,2]
[380129190,1755562245897,-242.755203,0.00019726,2]
[380129191,1755562245908,-458.111543,0.00019726,2]
[380129192,1755562245917,-1532.26,0.00019726,2]
[380129193,1755562245926,-609.67896405,0.00019726,2]
[380129194,1755562245936,-1301.059071,0.00019726,2]
[380129195,1755562245945,-460.0,0.00019726,2]
[380129196,1755562245955,-508.55,0.00019726,2]
[380129197,1755562245964,-1301.059071,0.00019726,2]
[380129198,1755562245973,-605.06,0.00019726,2]
[380129199,1755562245982,-690.45,0.00019726,2]
[380129200,1755562245993,-515.0,0.00019726,2]
[380129201,1755562246002,-480.0,0.00019726,2]
[380129202,1755562246011,-472.98593287,0.00019726,2]
[380129203,1755562246021,-480.0,0.00019726,2]
[380129204,1755562246030,-4798.86,0.00019726,2]
[380129205,1755562246039,-480.0,0.00019726,2]
[380129206,1755562246049,-480.0,0.00019726,2]
[380129207,1755562246058,-151.0,0.00019726,2]
[380129208,1755562246068,-151.0,0.00019726,2]
[380129210,1755562246079,-480.0,0.00019726,2]
[380129211,1755562246088,-480.0,0.00019726,2]
[380129212,1755562246098,-480.0,0.00019726,2]
[380129213,1755562246107,-720.67,0.00019726,2]
[380129214,1755562246117,-779.53,0.00019726,2]
[380129215,1755562246126,-773.58,0.00019726,2]
[380129216,1755562246136,-896.82,0.00019726,2]
[380129217,1755562246147,-359.273245,0.00019726,2]
[380129218,1755562246156,-480.0,0.00019726,2]
[380129219,1755562246165,-151.0,0.00019726,2]
[380129220,1755562246175,-480.0,0.00019726,2]
[380129221,1755562246185,-359.273245,0.00019726,2]
[380129223,1755562246274,-480.0,0.00019726,2]
[380129224,1755562246285,-480.0,0.00019726,2]
[380129225,1755562246295,-480.0,0.00019726,2]
[380129226,1755562246304,-480.0,0.00019726,2]
[380129227,1755562246314,-480.0,0.00019726,2]
[380129228,1755562246323,-480.0,0.00019726,2]
[380129229,1755562246333,-151.0,0.00019726,2]
[380129230,1755562246342,-1766.5,0.00019726,2]
[380129231,1755562246352,-151.0,0.00019726,2]
[380129232,1755562246362,-151.0,0.00019726,2]
[380129233,1755562246371,-480.0,0.00019726,2]
[380129234,1755562246382,-403.73824402,0.00019726,2]
[380129235,1755562246392,-1377.2,0.00019726,2]
[380129236,1755562246402,-729.5,0.00019726,2]
[380129237,1755562246412,-546.93,0.00019726,2]
[380129238,1755562246423,-480.0,0.00019726,2]
[380129239,1755562246432,-722.93,0.00019726,2]
[380129240,1755562246441,-3187.65,0.00019726,2]
[380129241,1755562246451,-1064.23,0.00019726,2]
[380129242,1755562246461,-2797.12,0.00019726,2]
[380129243,1755562246471,-581.37,0.00019726,2]
[380129244,1755562246481,-642.71,0.00019726,2]
[380129245,1755562246490,-151.0,0.00019726,2]
[380129246,1755562246500,-339.44911075,0.00019726,2]
[380129247,1755562246509,-480.0,0.00019726,2]
[380129248,1755562246518,-759.58,0.00019726,2]
[380129249,1755562246528,-480.0,0.00019726,2]
[380129250,1755562246539,-2686.05,0.00019726,2]
[380129251,1755562246549,-387.446965,0.00019726,2]
[380129252,1755562246559,-387.446965,0.00019726,2]
[380129253,1755562246568,-151.0,0.00019726,2]
[380129254,1755562246577,-1174.09,0.00019726,2]
[380129255,1755562246587,-491.33,0.00019726,2]
[380129256,1755562246596,-1576.02,0.00019726,2]
[380129257,1755562246606,-2022.32,0.00019726,2]
[380129258,1755562246615,-480.0,0.00019726,2]
[380129260,1755562246625,-151.0,0.00019726,2]
[380129261,1755562246634,-480.0,0.00019726,2]
[380129262,1755562246643,-151.0,0.00019726,2]
[380129264,1755562246652,-480.0,0.00019726,2]
[380129265,1755562246661,-480.0,0.00019726,2]
[380129266,1755562246671,-151.0,0.00019726,2]
[380129267,1755562246680,-151.0,0.00019726,2]
[380129268,1755562246690,-671.27,0.00019726,2]
[380129269,1755562246699,-480.0,0.00019726,2]
[380129270,1755562246709,-493.03663,0.00019726,2]
[380129271,1755562246718,-1781.16,0.00019726,2]
[380129272,1755562246727,-523.053354,0.00019726,2]
[380129273,1755562246737,-480.0,0.00019726,2]
[380129274,1755562246746,-493.03663,0.00019726,2]
[380129275,1755562246756,-480.0,0.00019726,2]
[380129276,1755562246765,-523.053354,0.00019726,2]
[380129277,1755562246774,-480.0,0.00019726,2]
[380129278,1755562246784,-1311.693579,0.00019726,2]
[380129279,1755562246793,-1311.693579,0.00019726,2]
[380129280,1755562246803,-497.37,0.00019726,2]
[380129281,1755562246812,-549.4,0.00019726,2]
[380129282,1755562246822,-151.0,0.00019726,2]
[380129283,1755562246831,-151.0,0.00019726,2]
[380129284,1755562246840,-1311.693579,0.00019726,2]
[380129285,1755562246849,-1311.693579,0.00019726,2]
[380129286,1755562246858,-480.0,0.00019726,2]
[380129287,1755562246867,-320.86531,0.00019726,2]
[380129288,1755562246876,-320.86531,0.00019726,2]
[380129289,1755562246885,-151.0,0.00019726,2]
[380129290,1755562246895,-151.0,0.00019726,2]
[380129291,1755562246904,-151.0,0.00019726,2]
[380129292,1755562246913,-320.86531,0.00019726,2]
[380129293,1755562246923,-151.0,0.00019726,2]
[380129294,1755562246933,-320.86531,0.00019726,2]
[380129295,1755562246942,-480.0,0.00019726,2]
[380129296,1755562246951,-735.04,0.00019726,2]
[380129297,1755562246961,-1792.86,0.00019726,2]
[380129298,1755562246970,-552.67,0.00019726,2]
[380129299,1755562246980,-166.66002,0.00019726,2]
[380129300,1755562246990,-166.66002,0.00019726,2]
[380129301,1755562246999,-166.66002,0.00019726,2]
[380129302,1755562247012,-166.66002,0.00019726,2]
[380129303,1755562247028,-480.0,0.00019726,2]
[380129304,1755562247042,-480.0,0.00019726,2]
[380129305,1755562247056,-151.0,0.00019726,2]
[380129306,1755562247073,-151.0,0.00019726,2]
[380129307,1755562247089,-4744.36,0.00019726,2]
[380129308,1755562247103,-151.0,0.00019726,2]
[380129309,1755562247118,-151.0,0.00019726,2]
[380129310,1755562247131,-480.0,0.00019726,2]
[380129311,1755562247147,-480.0,0.00019726,2]
[380129312,1755562247161,-151.0,0.00019726,2]
[380129313,1755562247175,-151.0,0.00019726,2]
[380129314,1755562247188,-843.26,0.00019726,2]
[380129315,1755562247200,-675.95,0.00019726,2]
[380129316,1755562247213,-480.0,0.00019726,2]
[380129317,1755562247227,-783.99,0.00019726,2]
[380129318,1755562247242,-1548.89,0.00019726,2]
[380129319,1755562247258,-500.0,0.00019726,2]
[380129320,1755562247273,-500.0,0.00019823,2]
[380129321,1755562247285,-295.270212,0.00019863,2]
[380129322,1755562247296,-4809.54777749,0.000199,2]
[380129323,1755562247308,-151.0,0.000199,2]
[380129324,1755562247325,-151.0,0.000199,2]
[380129325,1755562247338,-387.446965,0.000199,2]
[380129326,1755562247350,-151.0,0.000199,2]
[380129327,1755562247364,-387.446965,0.000199,2]
[380129328,1755562247375,-157.41389288,0.000199,2]
[380129329,1755562247391,-324.25194478,0.00019973,2]
[380129330,1755562247405,-502.28333861,0.0002,7]
[380129331,1755562247419,-561.61,0.0002,2]
[380129332,1755562247434,-151.0,0.0002,2]
[380129333,1755562247448,-152.26294,0.0002,2]
[380129334,1755562247463,-151.0,0.0002,2]
[380129335,1755562247477,-151.0,0.0002,2]
[380129336,1755562247491,-480.0,0.0002,2]
[380129337,1755562247504,-301.782346,0.0002,2]
[380129338,1755562247516,-151.0,0.0002,2]
[380129339,1755562247530,-151.0,0.0002,2]
[380129340,1755562247543,-151.0,0.0002,2]
[380129341,1755562247556,-151.0,0.0002,2]
[380129342,1755562247569,-151.0,0.0002,2]
[380129343,1755562247581,-223.162505,0.0002,2]
[380129344,1755562247594,-151.0,0.0002,2]
[380129345,1755562247606,-151.0,0.0002,2]
[380129346,1755562247620,-480.0,0.0002,2]
[380129347,1755562247632,-480.0,0.0002,2]
[380129348,1755562247647,-151.0,0.0002,2]
[380129349,1755562247661,-1895.47,0.0002,2]
[380129350,1755562247673,-151.0,0.0002,2]
[380129351,1755562247695,-299.766118,0.0002,2]
[380129352,1755562247708,-602.38,0.0002,2]
[380129353,1755562247721,-151.854492,0.0002,2]
[380129354,1755562247733,-480.0,0.0002,2]
[380129355,1755562247746,-480.0,0.0002,2]
[380129356,1755562247759,-480.0,0.0002,2]
[380129357,1755562247771,-480.0,0.0002,2]
[380129358,1755562247784,-151.0,0.0002,2]
[380129359,1755562247798,-480.0,0.0002,2]
[380129360,1755562247814,-480.0,0.0002,2]
[380129361,1755562247826,-151.0,0.0002,2]